Cogmind - Beta 13 @@@ ROGUE MODE // 2024.06.17 @ 12:20:57 Player: ovsyanka Result: Self-destructed Performance ------------- Evolutions (3) 1500 Regions Visited (6) 1200 Robots Destroyed (61) 305 Value Destroyed (1808) 1808 Prototype IDs (24) 480 Alien Tech Used (0) 0 Bonus (368) 368 TOTAL SCORE: 5661 Bonus ------- High Alert Combat Kills 104 Follower Combat Kills 70 Aligned with FarCom 300 Friendly Fire -106 Cogmind --------- Core Integrity 621/700 Matter 15/300 Energy 240/240 System Corruption 9% Temperature Cool (0) Movement Treading (490) Ox4 Location -7/Factory Parts ------- > --- POWER (2) -------- Nuclear Core > --- PROPULSION (4) --- Armored Treads > --- UTILITY (5) ------ Cooling System Huge Storage Unit Advanced Targeting Computer > --- WEAPON (2) ------- Flak Cannon > --- INVENTORY (25) --- Light Nuclear Core Light Nuclear Core Light Nuclear Core Improved Aluminum Leg Improved Heat Sink Improved Heat Sink High-capacity Matter Pod (37) Weight Redist. System Structural Scanner Experimental Sensor Array Transmission Jammer ECM Suite Advanced ECM Suite Improved Utility Shielding Hacking Suite Decoy Drone Bay Heavy Particle Cannon High-powered Shotgun Assault Cannon Flak Cannon Power Maul Longsword +1 Peak State ------------ > --- POWER ------------ Nuclear Core > --- PROPULSION ------- Armored Treads Armored Treads Compact Wheel > --- UTILITY ---------- Improved Heat Sink Huge Storage Unit Advanced Targeting Computer Hardened Heavy Armor Plating > --- WEAPON ----------- Heavy Assault Cannon > --- INVENTORY -------- Light Nuclear Core Light Nuclear Core Light Nuclear Core Aluminum Leg Improved Aluminum Leg Improved Heat Sink High-capacity Matter Pod Weight Redist. System Advanced Weight Redist. System Structural Scanner Experimental Sensor Array Advanced Targeting Computer Launcher Guidance Computer ECM Suite Hacking Suite Decoy Drone Bay High-powered Shotgun Flak Cannon Flak Cannon Flak Cannon Grenade Launcher Power Maul Longsword +1 [Rating: 39] Favorites ----------- Power Ion Engine Engine Ion Engine Power Core Nuclear Core Propulsion Light Treads Treads Light Treads Leg Aluminum Leg Wheel Wheel Utility Advanced Targeting Computer Device Seismic Detector Storage Medium Storage Unit Processor Advanced Targeting Computer Protection Hardened Heavy Armor Plating Weapon Light Cannon Energy Gun Medium Laser Energy Cannon Beam Cannon Ballistic Gun Assault Rifle Ballistic Cannon Light Cannon Launcher Grenade Launcher Special Weapon Mining Laser Slashing Weapon Longsword +1 Build | -11 -10 -10 -10 -9 -8 -7 ------- Run | Yrd Mat Min Exi Min Mat Fac Slots Evolved 6 | . . . . . 4 2 Power 1 | . . . . . . 1 Propulsion 2 | . . . . . 1 1 Utility 3 | . . . . . 3 . Weapon . | . . . . . . . Parts Attached 86 | 11 15 7 . 1 44 8 Power 7 | 2 2 . . . 3 . Engine 4 | 2 2 . . . . . Core 3 | . . . . . 3 . Reactor . | . . . . . . . Propulsion 27 | 4 5 1 . . 15 2 Treads 10 | 2 2 1 . . 5 . Leg 4 | . . . . . 3 1 Wheel 13 | 2 3 . . . 7 1 Hover . | . . . . . . . Flight . | . . . . . . . Utility 18 | 2 1 2 . 1 11 1 Device 8 | 1 . 2 . 1 3 1 Storage 4 | 1 1 . . . 2 . Processor 5 | . . . . . 5 . Hackware . | . . . . . . . Protection 1 | . . . . . 1 . Artifact . | . . . . . . . Weapon 34 | 3 7 4 . . 15 5 Energy Gun 5 | 2 3 . . . . . Energy Cannon 4 | . 1 1 . . 2 . Ballistic Gun 3 | 1 . . . . 2 . Ballistic Cannon 14 | . 2 1 . . 8 3 Launcher 3 | . . . . . 2 1 Special Weapon 3 | . 1 2 . . . . Impact Weapon . | . . . . . . . Slashing Weapon 2 | . . . . . 1 1 Piercing Weapon . | . . . . . . . Special Melee Weapon . | . . . . . . . Unidentified Prototypes 1 | . . . . 1 . . Parts Lost 18 | . 3 . . . 9 6 Power 2 | . 1 . . . 1 . Propulsion 7 | . 1 . . . 3 3 Utility 5 | . . . . . 3 2 Weapon 4 | . 1 . . . 2 1 Highest Loss Streak 6 | . 3 . . . 6 4 To Critical Strikes 1 | . . . . . 1 . Average Slot Usage (%) 91 | . 99 100 100 100 84 74 Engine 8 | . 14 14 14 14 3 . Core 2 | . . . . . 5 7 Treads 15 | . 16 14 14 14 15 11 Wheel 10 | . 11 14 14 14 9 6 Device 11 | . 14 14 14 14 6 14 Storage 11 | . 14 14 14 14 9 7 Processor 7 | . . . . . 16 14 Protection 2 | . . . . . 4 . Energy Gun 1 | . 7 . . . . . Energy Cannon 6 | . 6 13 14 14 1 . Ballistic Cannon 10 | . 8 13 14 14 10 6 Naked Turns . | . . . . . . . Heaviest Build 120 | 15 22 22 22 22 120 101 Greatest Support 41 | 40 40 20 10 10 40 41 Greatest Overweight (x) 31 | 1 2 2 2 2 31 4 Average Overweight (x) 3 | . 1 1 2 2 7 3 Largest Inventory Capacity 25 | 8 10 10 10 10 25 25 Average Capacity 16 | 7 9 10 10 10 24 25 Most Carried 25 | 8 10 10 10 10 25 25 Average Carried 14 | 4 9 9 9 9 20 24 Final Capacity 25 | 8 10 10 10 10 25 25 Final Carried 23 | 8 10 10 10 10 23 23 Class Distribution -------------------- 41% | Mutant 40% | Scavenger-Mutant 11% | Skirmisher 6% | Scavenger-Skirmisher Dominant Class ---------------- Mutant | -10/Materials Mutant | -10/Mines Scavenger-Mutant | -10/Exiles Skirmisher | -9/Mines Scavenger-Mutant | -8/Materials Mutant | -7/Factory Resources | -11 -10 -10 -10 -9 -8 -7 ----------- Run | Yrd Mat Min Exi Min Mat Fac Matter Collected 2274 | 205 587 200 . 25 1089 168 Remotely . | . . . . . . . Salvage Created 1726 | 105 413 . . . 1033 175 Parts 98 | 6 28 . . . 53 11 Haulers Intercepted 3 | . 1 . . . 2 . Recyclers Shooed 4 | 1 1 . . . 1 1 Parts Field Recycled . | . . . . . . . Retrieved Matter . | . . . . . . . Parts Self-Destructed . | . . . . . . . Prevented . | . . . . . . . Kills | -11 -10 -10 -10 -9 -8 -7 ------- Run | Yrd Mat Min Exi Min Mat Fac Combat Hostiles Destroyed 39 | . 8 . . . 25 6 Guns 4 | . 3 . . . 1 . Cannons 33 | . 5 . . . 23 5 AOE 2 | . . . . . 1 1 Classes Destroyed 14 | 2 7 . . . 3 2 Worker 3 | . 1 . . . 2 . Builder 2 | . 1 . . . . 1 Tunneler 2 | 2 . . . . . . Hauler 3 | . 1 . . . 2 . Recycler 6 | 1 2 . . . 2 1 Mechanic 2 | . 1 . . . 1 . Operator 3 | . 2 . . . 1 . Swarmer 9 | . 3 . . . 6 . Grunt 19 | . 5 . . . 12 2 Brawler 2 | . . . . . . 2 Duelist 1 | . . . . . 1 . Sentry 5 | . . . . . 5 . Specialist 2 | . . . . . 2 . Hunter 2 | . . . . . . 2 Best Kill Streak 7 | 3 3 . . . 7 5 Combat Bots Only 4 | . 3 . . . 4 4 Max Kills in Single Turn 3 | 1 2 . . . 3 3 Gunslinging . | . . . . . . . Exploded 1 | . . . . . 1 1 Melee . | . . . . . . . Uniques/NPCs Destroyed . | . . . . . . . Combat | -11 -10 -10 -10 -9 -8 -7 -------- Run | Yrd Mat Min Exi Min Mat Fac Hostile Shots Fired 237 | . 58 1 . . 152 26 Missed 57 | . 17 . . . 33 7 Damage Taken 3214 | . 605 30 . . 2155 424 Core 404 | . 82 30 . . 213 79 Absorbed by Shields . | . . . . . . . Regen/Repaired (Parts) 173 | . . . . . 173 . Core Remaining (%) 72 | 100 . . . 55 61 . Volleys Fired 205 | 7 68 12 . . 87 31 Largest 2 | 2 2 2 . . 2 2 Hottest 104 | 70 100 100 . . 104 88 Shots Fired 313 | 14 126 13 . . 126 34 Gun 100 | 14 61 . . . 25 . Cannon 192 | . 57 5 . . 100 30 Launcher 5 | . . . . . 1 4 Special 16 | . 8 8 . . . . Kinetic 216 | 7 60 4 . . 115 30 Thermal 87 | 7 61 9 . . 10 . Explosive 5 | . . . . . 1 4 Electromagnetic 5 | . 5 . . . . . Robot Hit Streak 39 | 5 11 . . . 39 23 Robot Miss Streak 5 | 3 3 . . . 5 2 Penetration Max 1 | . . . . . 1 . Secondary Targets . | . . . . . . . Shots Hit Robots 220 | 9 77 . . . 105 29 Core Hits 132 | 4 23 . . . 65 40 Critical Kills . | . . . . . . . Critical Parts Destroyed . | . . . . . . . Critical Strikes 6 | . . . . . 4 2 Blast 6 | . . . . . 4 2 Melee Attacks 4 | . . . . . 1 3 Impact . | . . . . . . . Slashing 4 | . . . . . 1 3 Piercing . | . . . . . . . Sneak Attacks . | . . . . . . . Combat Hostiles . | . . . . . . . Follow-up Attacks . | . . . . . . . Damage Inflicted 5793 | 134 1216 . . . 3195 1248 Guns 1013 | 134 462 . . . 417 . Cannons 3966 | . 676 . . . 2640 650 Explosions 708 | . . . . . 110 598 Melee . | . . . . . . . Ramming 34 | . 6 . . . 28 . Kinetic 4312 | 60 669 . . . 2933 650 Thermal 727 | 74 529 . . . 124 . Explosive 673 | . . . . . 110 563 Electromagnetic 47 | . 12 . . . . 35 Impact . | . . . . . . . Slashing . | . . . . . . . Piercing . | . . . . . . . Highest Corruption 9 | . 2 2 2 2 7 9 Average Corruption 3 | . 2 2 2 2 6 8 Corruption Purged . | . . . . . . . Corruption Blocked . | . . . . . . . Effects 69 | . 2 12 8 2 44 1 Message Errors 22 | . . 2 1 2 17 . Matter Fused 13 | . 1 1 2 . 8 1 Heat Flow Errors 6 | . . 3 1 . 2 . Energy Discharges 8 | . . 2 . . 6 . Parts Fused 2 | . . 1 . . 1 . Data Loss (minor) 10 | . . 2 3 . 5 . Data Loss (major) 4 | . 1 1 . . 2 . Misfires 1 | . . . . . 1 . Alerts 2 | . . . 1 . 1 . Weapon Failures 1 | . . . . . 1 . Overload Shots . | . . . . . . . Overflow Damage 307 | . 13 . . . 207 87 Projectiles 256 | . 13 . . . 196 47 Explosions 51 | . . . . . 11 40 Melee . | . . . . . . . Knockbacks 36 | . 7 . . . 19 10 Impact . | . . . . . . . Kinetic 31 | . 7 . . . 16 8 Secondary 5 | . . . . . 3 2 Self-Inflicted Damage 77 | . 3 . . . . 74 Shots 2 | . . . . . . 2 Rammed 6 | . 1 . . . 5 . Targets Rammed 6 | . 1 . . . 5 . Kicked . | . . . . . . . Crushed . | . . . . . . . Highest Temperature 371 | 63 367 278 136 . 371 . Average Temperature 80 | 32 76 66 76 . 91 . Received Heat Transfer 870 | . 258 . . . 549 63 Effects 2 | . 1 . . . 1 . Interference 1 | . 1 . . . . . Matter Decay 1 | . . . . . 1 . Siege Activations . | . . . . . . . Robots Corrupted . | . . . . . . . Combat Hostiles . | . . . . . . . Parts Fried . | . . . . . . . Impact Corruptions 1 | . . . . . . 1 Robots Melted . | . . . . . . . Combat Hostiles . | . . . . . . . Parts Melted 2 | . . . . . 2 . Heat Transferred 1889 | 222 1408 . . . 259 . Parts Sabotaged . | . . . . . . . Parts Stolen . | . . . . . . . Parts Stripped . | . . . . . . . Power Chain Reactions . | . . . . . . . Alert | -11 -10 -10 -10 -9 -8 -7 ------- Run | Yrd Mat Min Exi Min Mat Fac Peak Influence 556 | 15 215 3 . . 510 556 Initial 231 | . 9 . . . . 231 Average 118 | 5 65 1 . . 172 359 Maximum Alert Level 2 | . 1 . . . 2 2 Low Security (%) 75 | 100 99 100 . 100 62 . Level 1 14 | . . . . . 23 47 Level 2 9 | . . . . . 14 52 Level 3 . | . . . . . . . Level 4 . | . . . . . . . Level 5 . | . . . . . . . High Security . | . . . . . . . Max Security . | . . . . . . . Squads Dispatched 14 | . 3 . . . 8 3 Investigation 3 | . 1 . . . 2 . Extermination . | . . . . . . . Reinforcement 7 | . 2 . . . 3 2 Assault 1 | . . . . . . 1 Garrison 3 | . . . . . 3 . Intercept . | . . . . . . . Searches Triggered . | . . . . . . . Construction Impeded 1 | . . . . . . 1 Haulers Reinforced . | . . . . . . . Active Scanning Responses . | . . . . . . . Cargo Convoy Interrupts . | . . . . . . . Stealth | -11 -10 -10 -10 -9 -8 -7 --------- Run | Yrd Mat Min Exi Min Mat Fac Distress Signals 7 | . 1 . . . 6 . Communications Jammed . | . . . . . . . Distress Signals . | . . . . . . . Times Spotted 96 | . 30 4 . . 54 8 Peak Tracking Total 6 | . 4 1 . . 6 5 Tactical Retreats 10 | . 4 . . . 6 . Traps | -11 -10 -10 -10 -9 -8 -7 ------- Run | Yrd Mat Min Exi Min Mat Fac Traps Triggered 4 | . 2 . . . 2 . Indirectly . | . . . . . . . Trap Hack Attempts . | . . . . . . . Triggered . | . . . . . . . Disarmed . | . . . . . . . Reprogrammed . | . . . . . . . Reused . | . . . . . . . Traps Extracted . | . . . . . . . Installed . | . . . . . . . Triggered . | . . . . . . . Machines | -11 -10 -10 -10 -9 -8 -7 ---------- Run | Yrd Mat Min Exi Min Mat Fac Machines Disabled 8 | . 1 . . . 4 3 Max in Single Turn 2 | . 1 . . . 1 2 Garrison Access 1 | . . . . . . 1 Machines Repaired . | . . . . . . . Machines Dismantled . | . . . . . . . Machines Sabotaged . | . . . . . . . Overloaded Fab Kills . | . . . . . . . Hacking | -11 -10 -10 -10 -9 -8 -7 --------- Run | Yrd Mat Min Exi Min Mat Fac Machines Accessed 13 | . 2 1 2 1 5 2 Terminals 6 | . 2 . . . 4 . Fabricators 1 | . . . . . . 1 Repair Stations 1 | . . . . . 1 . Recycling Units . | . . . . . . . Scanalyzers . | . . . . . . . Garrison Access 1 | . . . . . . 1 Total Hacks 27 | . 8 1 2 1 12 3 Successful 12 | . 3 1 2 1 4 1 Failed 14 | . 4 . . . 8 2 Catastrophic 1 | . . . . . 1 . Database Lockouts 1 | . 1 . . . . . Manual 20 | . 9 . 1 . 10 . Terminals 16 | . 8 . . . 8 . Fabricators 1 | . . . . . . 1 Repair Stations 4 | . . . . . 4 . Recycling Units . | . . . . . . . Scanalyzers . | . . . . . . . Garrison Access 2 | . . . . . . 2 Terminal Hacks 8 | . 3 1 2 1 1 . Record 1 | . . . 1 . . . Robot Analysis 2 | . 2 . . . . . Open Door 2 | . . 1 . 1 . . Terminal Index 2 | . 1 . . . 1 . Derelict Proto ID Bank 1 | . . . 1 . . . Fabricator Hacks 1 | . . . . . . 1 Network Status 1 | . . . . . . 1 Repair Station Hacks 2 | . . . . . 2 . Scan Component 1 | . . . . . 1 . Repair 1 | . . . . . 1 . Recycling Unit Hacks . | . . . . . . . Scanalyzer . | . . . . . . . Garrison Access Hacks . | . . . . . . . Unauthorized Hacks 1 | . . . . . 1 . Terminals 1 | . . . . . 1 . Assimilate 1 | . . . . . 1 . Fabricators . | . . . . . . . Repair Stations . | . . . . . . . Recycling Units . | . . . . . . . Scanalyzers . | . . . . . . . Garrison Access . | . . . . . . . Data Cores Recovered . | . . . . . . . Used . | . . . . . . . Hacking Detections 7 | . 1 . . . 4 2 Full Trace Events 1 | . . . . . 1 . Feedback Events . | . . . . . . . Feedback Blocked . | . . . . . . . Robot Schematics Acquired . | . . . . . . . Robots Built . | . . . . . . . Authchips . | . . . . . . . Time . | . . . . . . . Total Robot Build Rating . | . . . . . . . Part Schematics Acquired . | . . . . . . . Parts Built . | . . . . . . . Authchips . | . . . . . . . Time . | . . . . . . . Total Part Build Rating . | . . . . . . . Parts Repaired 1 | . . . . . 1 . Time 38 | . . . . . 38 . Parts Recycled . | . . . . . . . Recycled Matter . | . . . . . . . Retrieved Matter . | . . . . . . . Retrieved Components . | . . . . . . . Parts Scanalyzed . | . . . . . . . Part Schematics Acquired . | . . . . . . . Parts Damaged . | . . . . . . . Bothacking | -11 -10 -10 -10 -9 -8 -7 ------------ Run | Yrd Mat Min Exi Min Mat Fac Used RIF Installer . | . . . . . . . Robots Hacked . | . . . . . . . Non-combat . | . . . . . . . Combat . | . . . . . . . Robot Hacks Applied . | . . . . . . . Relay Couplers Released 1 | . . . . . . 1 Machine Destruction 1 | . . . . . . 1 Fabnet Peak Effective % . | . . . . . . . Robots Rewired . | . . . . . . . Allies Hacked . | . . . . . . . Hacks Repelled . | . . . . . . . Allies | -11 -10 -10 -10 -9 -8 -7 -------- Run | Yrd Mat Min Exi Min Mat Fac Total Allies 7 | . . 6 . . 1 . Largest Group 5 | . . 5 4 3 3 . Highest-Rated Group 102 | . . 102 71 40 40 . Highest-Rated Ally 31 | . . 31 31 16 26 . Total Orders . | . . . . . . . Ally Attacks 40 | . . 21 . . 19 . Total Damage 436 | . . 227 . . 209 . Kills 6 | . . 4 . . 2 . Allies Corrupted . | . . . . . . . Allies Melted . | . . . . . . . Intel | -11 -10 -10 -10 -9 -8 -7 ------- Run | Yrd Mat Min Exi Min Mat Fac Robot Analysis Total 2 | . 2 . . . . . Derelict Logs Recovered . | . . . . . . . Drone Launches . | . . . . . . . Drone Recoveries . | . . . . . . . Exploration | -11 -10 -10 -10 -9 -8 -7 ------------- Run | Yrd Mat Min Exi Min Mat Fac Turns Passed 5737 | 98 1252 986 519 170 2353 359 Spaces Moved 3114 | 53 883 528 464 130 892 164 Core 4 | 3 . . . . 1 . Treads 164 | 11 72 65 . . 15 1 Legs . | . . . . . . . Wheels 2946 | 39 811 463 464 130 876 163 Hover . | . . . . . . . Flight . | . . . . . . . Fastest Speed 50 | 50 95 95 110 110 110 130 Average Speed 143 | 101 107 125 110 110 210 158 Slowest Speed 1600 | 160 240 240 110 110 1600 490 Overloaded Moves . | . . . . . . . Propulsion Burnouts . | . . . . . . . Robots Hopped . | . . . . . . . Cave-ins Triggered 1 | . . . . . 1 . Exploration Rate (%) 47 | 4 87 79 88 29 44 3 Regions Visited 6 Branch Regions 3 Pre-discovered Areas 2 | . . . 1 1 . . Known Exits Taken . | . . . . . . . Unknown Exits Taken 6 | 1 1 1 1 1 1 . Scrap Searched 3 | . . 1 . 2 . . Spaces Dug 12 | . 2 6 . . 1 3 Terrain Destroyed 38 | . 5 6 . . 15 12 Melee 4 | . . . . . 1 3 Projectile 30 | . 5 6 . . 10 9 AOE 4 | . . . . . 4 . Terrain Rammed . | . . . . . . . Walls Destroyed . | . . . . . . . Machines Disabled . | . . . . . . . Actions | -11 -10 -10 -10 -9 -8 -7 --------- Run | Yrd Mat Min Exi Min Mat Fac Total 3997 | 79 1046 825 473 158 1198 218 Wait 494 | . 54 271 8 23 136 2 Move 3108 | 52 882 527 463 129 891 164 Hop . | . . . . . . . Pick Up 54 | 8 13 3 1 2 22 5 Fast Attach 23 | 7 2 1 . . 12 1 Attach 21 | . 3 . . 1 12 5 Detach 4 | . . . . . 4 . Swap 42 | 4 10 6 . . 20 2 Drop 36 | 1 13 5 1 3 8 5 Fire 205 | 7 68 12 . . 87 31 Melee 4 | . . . . . 1 3 Ram 1 | . 1 . . . . . Kick . | . . . . . . . Crush 5 | . . . . . 5 . Escape Stasis . | . . . . . . . Rewire . | . . . . . . . Trap . | . . . . . . . Miscellaneous . | . . . . . . . Route ------- -11/Scrapyard -10/Materials (discovered 4 exits: [*Mat x2] / *Min x2) -10/Mines (discovered 2 exits: [*Mat] / *Exi) -10/Exiles -9/Mines -8/Materials -7/Factory History --------- Turn | Location | Event 2 | -11/Scrapyard | Met Revision 17 28 | -11/Scrapyard | Discovered new exit (range 14) 99 | -11/Scrapyard | Entered Materials 246 | -10/Materials | Central database locked down 303 | -10/Materials | Build established: Mutant 303 | -10/Materials | Discovered new exit (range 16) 493 | -10/Materials | Lost 3 parts (1p1n1w) 850 | -10/Materials | Discovered new exit (range 7) 971 | -10/Materials | Discovered new exit (range 16) 1115 | -10/Materials | Discovered new exit (range 11) 1351 | -10/Materials | Entered Mines 1352 | -10/Mines | Assembled infested the area 1357 | -10/Mines | Assisted by a Guerilla fighting off Assembled 1619 | -10/Mines | A weapon hastily lodged in a ceiling crevice suddenly fell to the ground 1643 | -10/Mines | Met a Derelict who couldn't figure out how to use a Trap Extractor 1685 | -10/Mines | Received a Mining Laser from a helpful Derelict 1718 | -10/Mines | Discovered new exit (range 8) 1858 | -10/Mines | Assisted by bots powering up and referring to "LRC-V3" 2007 | -10/Mines | Found a damaged Exp. Sensor Array with a note attached 2020 | -10/Mines | Found Prototype Device 2113 | -10/Mines | Joined a pair of Derelicts in attacking an 0b10 outpost 2274 | -10/Mines | Deemed a non-threat by the Exiles lab entrance 2276 | -10/Mines | Discovered new exit (range 5) 2337 | -10/Mines | Entered Exiles 2337 | -10/Exiles | Accompanied by 4 allies 2363 | -10/Exiles | Met 8R-AWN 2367 | -10/Exiles | Led the pair of lost Derelicts to a safe place 2389 | -10/Exiles | Met EX-HEX 2416 | -10/Exiles | Build established: Scavenger-Mutant 2427 | -10/Exiles | Met EX-BIN 2440 | -10/Exiles | Aligned with FarCom system 2441 | -10/Exiles | Given EX-Vault access code 2468 | -10/Exiles | Opened EX-Vault 2478 | -10/Exiles | Found Longsword +1 2501 | -10/Exiles | Warned to stay clear of 0b10 Research branches 2535 | -10/Exiles | Met EX-DEC 2541 | -10/Exiles | Learned location of Zion (-6) 2597 | -10/Exiles | Visited The Gauntlet 2843 | -10/Exiles | Discovered new exit (range 14) 2856 | -10/Exiles | Left Exiles lab with Longsword +1 2856 | -10/Exiles | Entered Mines 2856 | -9/Mines | Accompanied by 3 allies 2872 | -9/Mines | Found the Drone Emporium 2879 | -9/Mines | Identified Exp. Sensor Array 2884 | -9/Mines | Found Prototype Device 2891 | -9/Mines | Met a Derelict bent on vengeance 2985 | -9/Mines | Learned location of Storage (-7) 2990 | -9/Mines | YI-UF0 nonchalantly dropped a Grenade Launcher on the ground 3001 | -9/Mines | Discovered new exit (range 16) 3026 | -9/Mines | Entered Materials 3026 | -8/Materials | Accompanied by 3 allies 3026 | -8/Materials | Evolved 4 slots: Propulsion x1, Utility x3 3209 | -8/Materials | Build established: Skirmisher 3371 | -8/Materials | Lost 3 allies 3520 | -8/Materials | Build established: Scavenger-Skirmisher 3893 | -8/Materials | Build established: Skirmisher 3969 | -8/Materials | Crushed by falling debris 4001 | -8/Materials | Lost 6 parts (1p2n1u2w) 4241 | -8/Materials | Repaired Hvy. Assault Cannon 4300 | -8/Materials | Build established: Scavenger-Mutant 4545 | -8/Materials | Garrison activated, responded to threat 5009 | -8/Materials | Discovered new exit (range 15) 5379 | -8/Materials | Entered Factory 5379 | -7/Factory | Evolved 2 slots: Power x1, Propulsion x1 5738 | -7/Factory | Self-destructed Last Messages --------------- 05716_ Destroyed Com. Wheel. 05717_ Adv. Targeting Computer destroyed. 05717_ System corrupted by crushing effect (+4). 05719_ B-48 Gladiator destroyed. 05719_ Grenade Launcher destroyed. 05719_ Destroyed Grenade Launcher. 05719_ U-05 Engineer destroyed. 05719_ B-48 Gladiator destroyed. 05719_ G-47 Trooper knocked back. 05721_ System corrupted: Matter fused (-10). 05722_ G-50 Soldier destroyed. 05724_ G-47 Trooper destroyed. 05726_ I-36 Angel knocked back. 05728_ U-05 Engineer lays Concrete. 05730_ I-36 Angel knocked back. 05730_ U-05 Engineer lays Concrete. 05732_ I-36 Angel knocked back. 05733_ U-05 Engineer lays Concrete. 05734_ Acquired 15 matter. 05735_ U-05 Engineer lays Concrete. Map ----- +----------------------------------------------------+ | ???????????????????????????????? | | ????????????????#??????????????? | | ????????????????? ????????????? | | ?????????????######+#######????? | | ?????????????# #????? | | ?????????????# " " " " " #????? | | ?????????????# " " " " " #????? | | ?????????????# " " " " " #????? | | ?????????????# " " " " " #????? | | ?????????????# " " " " " #????? | | ?????????????# " " " " " #????? | | ?????????????# " " " " " #????? | | ?????????????# " " " " " #????? | | ?????????????# " " " " " #????? | | ?????????????# |#????? | | ?????????????# #????? | | ?????????????##+####+######????? | | ?????###+###### # #????? | | ?????# !!! # "" #????? | | ?????# !! ! # G" #????? | | ?????#""" !!i # * [ #????? | | ?????#"R # #????? | | ?????#""" # #????? | | ?????# "" # #????? | | ?????# !] # #????? | | ?? # @|!* #####+########## | | #"" # ==% ## | | #"T # % ## | | #"" # u ## % | | # # ## != | | # ?+ "" " ## | | # ??# """" #####"+######### | | # ???# """" + ##? | | #????# """" ] # = ##? | | ?????# o"""? %# #?? | | ????? "??? # #?? | | ????? ???? # """"" #?? | | ???? ^ ???? # """"" #?? | | ???? ????? # """ ##? | | ??? ????? ?#"" ##? | | ????? ????????#" """"" ##? | | ????????????????#"F """"" #?? | | ????????????????#"" """ #?? | | ????????????????# #?? | | ????????????????##############?? | | ???????????????????????????????? | | ???????????????????????????????? | | ???????????????????????????????? | | ???????????????????????????????? | | ???????????????????????????????? | +----------------------------------------------------+ Best States ------------- Heat Dissipation 56 Energy Generation 14 Energy Capacity 250 Matter Stores 300 Matter Capacity 300 Sight Range 16 Robot Scan Range 20 Terrain Scan Density 10 Additional Mass Support 9 Armor Coverage 600 Evasion (%) 44 Targeting Accuracy 24 Recoil Reduction 2 Item Schematics ----------------- None Robot Schematics ------------------ None Fabricated ------------ Nothing Alien Tech Used ----------------- None Achievements -------------- None Challenges ------------ None Game ------ Seed DisruptionArmorModule Manual? 0 Play Time 00:55:35 Cumulative 38.1 hours Start 2024.06.17 @ 11:08:46 End 2024.06.17 @ 12:20:57 Sessions 1 Manual Loads 0 Difficulty Rogue Special Mode None Game No. 22 Rogue 9 Adventurer 13 Explorer 0 Win Type - Total 0 Types 0/0/0/0/0/0/0/0/0 Lore% 22 Gallery% 36 Achievement% 31 Wizard Run 0 Options --------- Layout 2 ASCII 0 Keyboard 0 Movement Numpad Keybinds 0 Fullscreen 2 Font 16/Swanston Map View 55x47 Zoom Use 0% Tactical HUD 1 Map Filters NONE Filters NONE Steam 0 RUN: 81ae2f7d-46f1-4cd3-857f-133313b1a23f